bitfinex/quotes_SOLUSD_20241022
["timestamp","ask_amount","ask_price","bid_price","bid_amount"]
[1729610706798,5.9555,167.92,167.78,20.0]
[1729610707926,5.9555,167.92,167.79,23.776884]
[1729610708097,5.9556,167.91,167.79,23.776884]
[1729610708618,5.9567,167.88,167.77,15.0145]
[1729610709117,14.8875,167.93,167.77,15.0145]
[1729610709313,5.9562,167.89,167.77,15.0145]
[1729610710317,5.9555,167.92,167.78,23.776884]
[1729610710524,5.9541,167.95,167.8,27.20173728]
[1729610710719,5.9552,167.92,167.8,27.20173728]
[1729610710908,5.9548,167.93,167.8,27.20173728]
[1729610711111,5.9548,167.93,167.83,27.20173728]
[1729610711319,5.9541,167.96,167.83,27.20173728]
[1729610711824,5.9541,167.95,167.83,27.20173728]
[1729610712025,5.9538,167.96,167.84,6.2653]
[1729610712624,5.9546,167.94,167.84,6.2653]
[1729610713518,29.7689,167.96,167.79,6.5812]
[1729610713751,5.9554,167.92,167.79,6.5812]
[1729610714409,5.956,167.9,167.79,6.5812]
[1729610714828,5.9554,167.92,167.79,6.5812]
[1729610715028,5.9554,167.92,167.8,23.776884]
[1729610715637,43.776884,167.96,167.79,6.5812]
[1729610715810,5.956,167.9,167.79,6.5812]
[1729610717722,5.9547,167.94,167.82,27.20173728]
[1729610717941,5.9537,167.96,167.83,23.776884]
[1729610718107,36.3116,167.97,167.79,6.5812]
[1729610718316,25.25505784,167.96,167.78,20.0]
[1729610718522,5.9569,167.88,167.78,20.0]
[1729610719604,43.776884,167.86,167.65,0.628041]
[1729610719813,43.776884,167.86,167.66,56.92173728]
[1729610720028,5.9598,167.79,167.66,27.20173728]
[1729610720411,5.9601,167.79,167.66,27.20173728]
[1729610720821,5.9601,167.79,167.68,20.0]
[1729610721004,5.9605,167.77,167.66,27.20173728]
[1729610721211,43.776884,167.84,167.66,27.20173728]
[1729610721518,5.9608,167.77,167.66,27.20173728]
[1729610721826,21.0284,167.81,167.66,27.20173728]
[1729610722037,5.9587,167.82,167.69,27.20173728]
[1729610722212,5.9589,167.82,167.69,27.20173728]
[1729610722927,5.9591,167.81,167.69,27.20173728]
[1729610723127,6.1304,167.85,167.72,27.20173728]
[1729610723435,6.1304,167.85,167.73,23.776884]
[1729610723635,12.0881,167.85,167.73,23.776884]
[1729610723828,6.1304,167.85,167.73,23.776884]
[1729610724031,5.9581,167.84,167.73,23.776884]
[1729610724334,6.1304,167.85,167.73,23.776884]
[1729610724920,6.1855,167.91,167.75,15.7131]
[1729610725120,5.9569,167.87,167.75,42.91483728]
[1729610726330,6.1855,167.91,167.68,16.1549]
[1729610726331,5.9595,167.8,167.68,16.1549]
[1729610727743,43.776884,167.88,167.68,16.1549]
[1729610727925,5.9589,167.82,167.69,20.0]
[1729610728539,5.9589,167.82,167.7,27.20173728]
[1729610728935,14.8924,167.87,167.71,23.776884]
[1729610729133,5.9581,167.84,167.72,20.0]
[1729610729938,5.9581,167.84,167.73,23.776884]
[1729610730252,5.9589,167.82,167.71,20.0]
[1729610730421,14.8923,167.88,167.71,20.0]
[1729610730817,5.9577,167.85,167.73,27.20173728]
[1729610731044,5.9571,167.87,167.74,20.0]
[1729610731349,21.0745,167.91,167.74,20.0]
[1729610731350,5.9574,167.86,167.74,20.0]
[1729610731923,5.9574,167.86,167.75,23.776884]
[1729610732447,21.0745,167.91,167.75,23.776884]
[1729610732625,5.957,167.87,167.75,23.776884]
[1729610733125,5.9578,167.85,167.74,20.0]
[1729610733330,5.9573,167.86,167.74,20.0]
[1729610733530,5.9569,167.88,167.75,23.776884]
[1729610733946,6.1855,167.91,167.75,23.776884]
[1729610733947,6.1855,167.91,167.77,23.776884]
[1729610734148,6.1855,167.91,167.79,50.97862128]
[1729610734649,6.1420476,167.95,167.82,27.20173728]
[1729610734845,6.1420476,167.95,167.83,23.776884]
[1729610734846,5.9542,167.95,167.83,23.776884]
[1729610735429,5.955,167.93,167.82,27.20173728]
[1729610735725,5.9546,167.94,167.82,27.20173728]
[1729610736838,5.9542,167.95,167.83,23.776884]
[1729610737149,12.5643,167.96,167.83,23.776884]
[1729610738159,6.6105,167.96,167.83,23.776884]
[1729610738326,6.6105,167.96,167.84,20.0]
[1729610738524,6.6105,167.96,167.85,23.776884]
[1729610738951,5.953,167.99,167.86,22.388]
[1729610740432,6.2066,168.01,167.86,22.388]
[1729610740634,5.9555,167.92,167.82,20.0]
[1729610741455,5.9555,167.92,167.81,16.0207]
[1729610741754,5.9553,167.92,167.81,16.0207]
[1729610742838,20.0,167.99,167.81,16.0207]
[1729610743048,5.9544,167.95,167.81,16.0207]
[1729610743262,21.0875,168.01,167.83,23.776884]
[1729610743436,24.37564354,168.0,167.83,23.776884]
[1729610743754,5.9537,167.97,167.83,23.776884]
[1729610743938,20.0,168.0,167.83,23.776884]
[1729610744252,14.8827,167.98,167.82,27.20173728]
[1729610744475,23.776884,167.99,167.81,16.0207]
[1729610744630,14.8836,167.97,167.82,23.776884]
[1729610744931,5.9548,167.94,167.82,23.776884]
[1729610745353,5.9551,167.93,167.81,16.0207]
[1729610746153,43.776884,167.98,167.81,16.0207]
[1729610746361,16.3973,167.95,167.81,16.0207]
[1729610746532,16.3973,167.95,167.76,2.09540633]
[1729610746533,14.8862,167.94,167.77,15.5024]
[1729610746733,5.9568,167.88,167.77,15.5024]
[1729610746954,16.3973,167.95,167.77,15.5024]
[1729610746955,5.9555,167.91,167.77,15.5024]
[1729610747253,5.9571,167.87,167.77,15.5024]
[1729610747561,5.9567,167.88,167.77,15.5024]
[1729610747764,5.9567,167.88,167.78,20.0]
[1729610750065,5.9563,167.89,167.78,20.0]
[1729610750268,5.9558,167.91,167.78,20.0]
[1729610750563,5.956,167.9,167.78,20.0]
[1729610750764,16.3973,167.95,167.79,23.776884]
[1729610750960,4.38883415,167.94,167.79,23.776884]
[1729610751255,5.9553,167.92,167.79,23.776884]
[1729610751835,14.8862,167.94,167.78,20.0]
[1729610752065,5.956,167.9,167.78,20.0]
[1729610752239,14.8862,167.94,167.79,23.776884]
[1729610752571,5.9554,167.92,167.79,23.776884]
[1729610753063,5.9558,167.91,167.79,23.776884]
[1729610753241,5.9562,167.89,167.78,20.0]
[1729610754362,5.9555,167.91,167.78,20.0]
[1729610755689,0.1,167.93,167.78,20.0]
[1729610755973,0.1,167.93,167.77,42.70413728]
[1729610755974,5.9576,167.86,167.77,15.5024]
[1729610756952,5.9577,167.85,167.77,15.5024]
[1729610757650,5.9563,167.89,167.77,15.5024]
[1729610758755,5.9556,167.91,167.78,23.776884]
[1729610758946,5.956,167.9,167.78,23.776884]
[1729610760239,5.9566,167.89,167.77,42.70413728]
[1729610761067,6.4325,167.93,167.77,15.5024]
[1729610761365,0.1,167.91,167.74,27.20173728]
[1729610761537,23.776884,167.89,167.72,21.6886]
[1729610761883,5.9592,167.81,167.72,21.6886]
[1729610762041,5.9592,167.81,167.72,15.3658]
[1729610762649,30.9517,167.86,167.72,15.3658]
[1729610762842,5.9589,167.82,167.72,15.3658]
[1729610764563,16.0584,167.86,167.72,15.3658]
[1729610765056,5.9582,167.84,167.72,15.3658]
[1729610766068,21.2407,167.87,167.74,50.97862128]
[1729610766069,12.3052,167.87,167.74,50.97862128]
[1729610766270,16.4634,167.9,167.77,27.20173728]
[1729610766446,12.3519,167.91,167.78,20.0]
[1729610766960,5.9559,167.9,167.78,20.0]
[1729610767372,12.3516,167.91,167.78,20.0]
[1729610768172,5.9562,167.89,167.78,20.0]
[1729610768874,5.9571,167.87,167.74,27.20173728]
[1729610769065,5.9578,167.85,167.74,27.20173728]
[1729610769467,5.9581,167.84,167.73,6.0531]
[1729610770073,14.8907,167.89,167.73,6.1531]
[1729610770250,5.9575,167.86,167.73,6.1531]
[1729610770456,5.9575,167.86,167.74,20.0]
[1729610771377,6.396,167.91,167.76,20.0]
[1729610771570,5.9561,167.9,167.78,27.20173728]
[1729610771772,5.9563,167.89,167.78,27.20173728]
[1729610773093,5.9566,167.88,167.78,27.20173728]
[1729610773783,12.3519,167.91,167.79,20.0]
[1729610773973,5.956,167.9,167.79,20.0]
[1729610774156,5.9565,167.89,167.78,27.20173728]
[1729610775382,17.9,167.9,167.75,27.20173728]
[1729610775584,6.5229,167.82,167.69,6.3446]
[1729610776078,5.9592,167.81,167.69,6.3446]
[1729610776656,5.9618,167.74,167.67,15.3873]
[1729610776854,5.9627,167.71,167.65,0.628041]
[1729610777673,6.2517,167.7,167.65,0.628041]
[1729610778068,5.9644,167.66,167.65,0.628041]
[1729610779467,5.9671,167.59,167.4,85.9385]
[1729610779677,17.9,167.63,167.44,27.20173728]
[1729610779866,5.9666,167.6,167.44,27.20173728]
[1729610780187,36.847,167.65,167.44,27.20173728]
[1729610780188,5.9659,167.62,167.47,27.20173728]
[1729610781063,5.9653,167.64,167.47,27.20173728]
[1729610781286,21.935,167.65,167.47,27.20173728]
[1729610781287,6.3003,167.65,167.51,15.2488]
[1729610781662,22.682,167.7,167.56,27.20173728]
[1729610781970,28.6451,167.7,167.57,20.0]
[1729610782380,6.3839,167.7,167.57,20.0]
[1729610783389,12.3469,167.7,167.57,20.0]
[1729610784289,12.3469,167.7,167.54,20.0]
[1729610784290,5.9641,167.67,167.54,20.0]
[1729610784477,5.9644,167.66,167.54,20.0]
[1729610784793,5.9641,167.67,167.54,20.0]
[1729610785487,5.9633,167.69,167.54,20.0]
[1729610786589,6.3839,167.7,167.56,20.0]
[1729610786783,5.9639,167.68,167.56,47.20173728]
[1729610786961,5.9639,167.68,167.56,20.0]
[1729610787162,5.9639,167.68,167.53,27.20173728]
[1729610787163,5.9639,167.68,167.54,20.0]
[1729610787366,6.3839,167.7,167.54,20.0]
[1729610787585,5.9643,167.67,167.54,20.0]
[1729610792277,5.9644,167.66,167.54,20.0]
[1729610793207,14.9058,167.72,167.51,15.2488]
[1729610793208,6.4343,167.61,167.51,15.2488]
[1729610793782,12.4006,167.61,167.51,15.2488]
[1729610793985,12.4006,167.61,167.48,0.628041]
[1729610793986,6.4343,167.61,167.48,0.628041]
[1729610794480,5.9683,167.56,167.48,0.628041]
[1729610794879,6.4343,167.61,167.48,0.628041]
[1729610795273,5.9678,167.57,167.48,0.628041]
[1729610795462,6.4343,167.61,167.48,0.628041]
[1729610795664,24.4343,167.61,167.48,0.628041]
[1729610795867,23.776884,167.55,167.48,0.628041]
[1729610796296,15.5124,167.56,167.48,0.628041]
[1729610796297,5.9697,167.51,167.48,0.628041]
[1729610796469,15.5124,167.56,167.48,0.628041]
[1729610796669,5.9691,167.53,167.48,0.628041]
[1729610796977,5.9694,167.52,167.48,0.628041]
[1729610797186,15.5124,167.56,167.48,0.628041]
[1729610797475,14.9209,167.55,167.48,0.628041]
[1729610797689,5.9694,167.52,167.48,0.628041]
[1729610798075,23.776884,167.54,167.48,0.628041]
[1729610798470,5.969,167.53,167.48,0.628041]
[1729610798670,15.5124,167.56,167.48,0.628041]
[1729610798895,5.9695,167.52,167.48,0.628041]
[1729610799100,5.9701,167.51,167.48,0.628041]
[1729610799273,6.21391261,167.57,167.48,0.628041]
[1729610799790,5.9678,167.57,167.48,0.628041]
[1729610800099,22.9921,167.61,167.48,0.628041]
[1729610800100,5.9687,167.54,167.48,0.628041]
[1729610800273,14.9164,167.6,167.48,0.628041]
[1729610800474,5.969,167.53,167.48,0.628041]
[1729610800672,5.9703,167.5,167.48,0.628041]
[1729610800890,17.34791568,167.49,167.48,0.628041]
[1729610801693,5.9703,167.5,167.48,0.628041]
[1729610802295,5.9705,167.49,167.48,0.628041]
[1729610802767,23.776884,167.46,167.31,0.628041]
[1729610802972,5.9727,167.43,167.31,0.628041]
[1729610803275,5.9729,167.43,167.31,0.628041]
[1729610803494,6.5319,167.42,167.31,0.628041]
[1729610804297,5.9687,167.54,167.36,43.776884]
[1729610804527,6.4764,167.55,167.41,27.20173728]
[1729610804718,6.4764,167.55,167.42,43.776884]
[1729610805017,12.4447,167.55,167.42,43.776884]
[1729610805197,5.9693,167.53,167.4,22.5739]
[1729610805392,12.4451,167.55,167.41,43.776884]
[1729610805819,5.9696,167.52,167.41,20.0]
[1729610805987,5.9697,167.52,167.4,22.5739]
[1729610806402,5.969,167.54,167.4,22.5739]
[1729610806893,12.4449,167.55,167.41,23.776884]
[1729610807109,6.4764,167.55,167.43,23.776884]
[1729610807416,6.062,167.6,167.45,23.776884]
[1729610807817,6.062,167.6,167.46,20.0]
[1729610808008,6.062,167.6,167.47,23.776884]
[1729610808689,12.0286,167.6,167.47,23.776884]
[1729610808890,6.062,167.6,167.47,20.0]
[1729610809307,5.9669,167.59,167.47,20.0]
[1729610809512,6.062,167.6,167.47,20.0]
[1729610809688,6.062,167.6,167.48,23.776884]
[1729610811523,20.0,167.59,167.36,70.0]
[1729610811819,5.969,167.54,167.36,114.53501579]
[1729610812016,6.062,167.6,167.4,6.1521]
[1729610812190,5.9669,167.59,167.42,44.53501579]
[1729610812820,5.9669,167.59,167.44,20.0]
[1729610813114,5.9669,167.59,167.45,23.776884]
[1729610813316,5.9673,167.58,167.45,23.776884]
[1729610814308,12.0286,167.6,167.45,23.776884]
[1729610814503,12.0286,167.6,167.47,23.776884]
[1729610814816,12.0286,167.6,167.46,23.776884]
[1729610815009,5.9673,167.58,167.46,20.0]
[1729610815211,12.0288,167.6,167.46,20.0]
[1729610816327,6.21211678,167.65,167.48,140.65811579]
[1729610816629,6.303,167.67,167.55,23.776884]
[1729610818122,12.2672,167.67,167.55,23.776884]
[1729610818699,6.303,167.67,167.55,23.776884]
[1729610818924,5.9637,167.69,167.55,23.776884]
[1729610820629,5.963,167.7,167.58,23.776884]
[1729610821503,4.33470528,167.69,167.58,23.776884]
[1729610821699,4.33470528,167.68,167.59,15.3949]
[1729610821915,6.4421,167.71,167.6,23.776884]
[1729610822114,4.33501051,167.7,167.6,23.776884]
[1729610822427,2.98449454,167.73,167.6,23.776884]
[1729610822628,11.28810644,167.72,167.6,23.776884]
[1729610822803,4.3415794,167.71,167.6,23.776884]
[1729610823104,29.46531524,167.75,167.6,23.776884]
[1729610823105,4.3415794,167.7,167.6,23.776884]
[1729610823301,5.9619,167.73,167.6,23.776884]
[1729610823505,11.29833625,167.72,167.6,23.776884]
[1729610823715,4.34551394,167.71,167.6,23.776884]
[1729610823911,10.30741394,167.73,167.6,23.776884]
[1729610824129,11.29956022,167.72,167.6,23.776884]
[1729610824422,4.34551394,167.72,167.6,23.776884]
[1729610824608,6.2335,167.75,167.6,23.776884]
[1729610824805,11.30273302,167.74,167.6,23.776884]
[1729610825116,11.30273302,167.73,167.6,23.776884]
[1729610825323,4.34720501,167.72,167.63,23.776884]
[1729610825625,7.21111524,167.78,167.68,23.776884]
[1729610825805,4.35054884,167.77,167.68,68.31189979]
[1729610826111,10.19416456,167.82,167.72,23.776884]
[1729610826313,14.29415586,167.81,167.72,23.776884]
[1729610826521,2.98273288,167.82,167.72,23.776884]
[1729610826709,4.34692729,167.81,167.72,23.776884]
[1729610826896,13.16861524,167.86,167.72,23.776884]
[1729610827099,11.30140862,167.85,167.72,23.776884]
[1729610827332,11.29965049,167.84,167.72,23.776884]
[1729610827513,4.34601942,167.83,167.72,23.776884]
[1729610827701,5.9575,167.86,167.72,23.776884]
[1729610827901,11.29129969,167.85,167.72,23.776884]
[1729610828097,4.34280757,167.84,167.72,23.776884]
[1729610828327,4.34280757,167.83,167.72,23.776884]
[1729610828502,5.9575,167.86,167.72,23.776884]
[1729610828702,4.33965402,167.85,167.72,23.776884]
[1729610829000,4.33965402,167.84,167.72,23.776884]
[1729610829202,5.9575,167.86,167.72,23.776884]
[1729610829421,5.957,167.87,167.72,23.776884]
[1729610829604,4.33657442,167.86,167.75,23.776884]
[1729610829807,12.4244,167.88,167.75,23.776884]
[1729610830025,4.33667347,167.87,167.75,23.776884]
[1729610830318,12.4244,167.88,167.75,23.776884]
[1729610830754,6.4678,167.88,167.75,23.776884]
[1729610830926,0.628041,167.9,167.78,23.776884]
[1729610831303,5.9568,167.88,167.77,15.2535]
[1729610832007,0.628041,167.9,167.78,23.776884]
[1729610832524,5.9569,167.88,167.77,15.2535]
[1729610832831,5.9571,167.87,167.77,15.2535]
[1729610834121,0.628041,167.9,167.73,21.462]
[1729610834427,5.9562,167.89,167.73,48.7577828]
[1729610834634,0.628041,167.9,167.76,27.2957828]
[1729610834935,0.628041,167.9,167.76,97.2957828]
[1729610835115,0.628041,167.9,167.76,27.2957828]
[1729610835318,0.628041,167.9,167.77,23.776884]
[1729610835932,0.628041,167.9,167.79,51.0726668]
[1729610836610,0.628041,167.9,167.82,27.2957828]
[1729610836806,0.628041,167.9,167.83,23.776884]
[1729610837408,0.628041,167.9,167.83,30.013284]
[1729610838131,0.628041,167.9,167.83,6.2364]
[1729610838531,0.628041,167.9,167.81,23.776884]
[1729610839836,0.628041,167.9,167.84,23.776884]
[1729610841649,0.628041,167.9,167.8,59.93912878]
[1729610841825,0.628041,167.9,167.81,23.776884]
[1729610842141,0.628041,167.9,167.83,44.30052878]
[1729610844832,0.628041,167.9,167.84,23.776884]
[1729610847528,0.628041,167.9,167.87,23.776884]
[1729610848443,23.14900738,168.05,167.87,23.776884]
[1729610848444,5.9514,168.03,167.89,68.07741278]
[1729610848647,5.9516,168.02,167.89,68.07741278]
[1729610849331,47.753,168.05,167.88,21.541]
[1729610849638,5.9533,167.98,167.88,15.3788]
[1729610850044,15.7896,168.04,167.88,15.3788]
[1729610850545,14.8808,168.01,167.88,15.3788]
[1729610850851,5.9527,167.99,167.88,15.3788]
[1729610851152,15.7896,168.04,167.88,15.3788]
[1729610851324,6.0467,168.01,167.88,15.3788]
[1729610851519,5.9537,167.97,167.88,15.3788]
[1729610851721,6.0467,168.01,167.88,15.3788]
[1729610851722,5.9538,167.96,167.88,15.3788]
[1729610851943,5.9538,167.96,167.85,23.776884]
[1729610853664,17.9,167.99,167.83,15.9829]
[1729610853823,0.1,168.0,167.83,15.9829]
[1729610853824,5.9554,167.92,167.83,15.9829]
[1729610855027,5.9555,167.91,167.83,15.9829]
[1729610855247,5.9555,167.91,167.8,23.776884]
[1729610855947,6.4989,167.92,167.75,66.19842878]
[1729610856149,20.8444,167.91,167.75,66.19842878]
[1729610856350,5.9569,167.88,167.75,21.8979]
[1729610856564,5.9563,167.89,167.75,21.8979]
[1729610856855,5.956,167.9,167.75,66.19842878]
[1729610857562,5.956,167.9,167.76,23.776884]
[1729610857851,5.9563,167.89,167.76,23.776884]
[1729610858057,5.956,167.9,167.76,23.776884]
[1729610858431,5.9556,167.91,167.76,23.776884]
[1729610858630,12.4541,167.92,167.76,23.776884]
[1729610858872,6.4989,167.92,167.76,23.776884]
[1729610859145,5.9545,167.94,167.78,68.07741278]
[1729610860161,21.1721,167.97,167.78,68.07741278]
[1729610860162,5.9537,167.96,167.78,68.07741278]
[1729610860453,5.9548,167.94,167.8,23.776884]
[1729610860861,6.2883,167.97,167.79,23.776884]
[1729610861030,4.31463477,167.96,167.79,23.776884]
[1729610861239,5.9545,167.94,167.79,23.776884]
[1729610861437,5.9555,167.92,167.79,23.776884]
[1729610861749,5.9555,167.91,167.79,23.776884]
[1729610861956,6.2883,167.97,167.79,23.776884]
[1729610862130,4.31954152,167.96,167.79,93.776884]
[1729610862458,10.27384152,167.95,167.79,93.776884]
[1729610862758,6.2883,167.97,167.79,93.776884]
[1729610862928,6.2883,167.97,167.85,23.776884]
[1729610862929,4.32544742,167.96,167.85,23.776884]
[1729610863139,6.2883,167.97,167.85,23.776884]
[1729610865534,5.9537,167.96,167.85,23.776884]
[1729610866939,5.9542,167.95,167.85,23.776884]
[1729610867139,6.2883,167.97,167.84,6.062]
[1729610867353,5.9545,167.94,167.84,6.062]
[1729610869657,6.2883,167.97,167.84,6.062]
[1729610869957,6.2883,167.97,167.82,23.776884]
[1729610870165,5.9554,167.92,167.81,23.776884]
[1729610871054,5.9554,167.92,167.8,22.4968]
[1729610871257,14.8846,167.96,167.8,22.4968]
[1729610871441,5.9549,167.93,167.8,22.4968]
[1729610871958,5.9537,167.96,167.81,97.26706764]
[1729610872546,5.9537,167.96,167.82,23.776884]
[1729610874065,6.2883,167.97,167.81,23.776884]
[1729610874256,5.9562,167.9,167.8,22.4968]
[1729610876565,14.8853,167.95,167.81,23.776884]
[1729610876741,5.9554,167.92,167.81,23.776884]
[1729610877466,5.9556,167.91,167.81,23.776884]
[1729610881147,6.2883,167.97,167.81,23.776884]
[1729610881346,5.9548,167.93,167.81,23.776884]
[1729610882892,6.2883,167.97,167.83,23.776884]
[1729610883179,12.2418,167.97,167.83,23.776884]
[1729610883979,6.2883,167.97,167.86,23.776884]
[1729610884152,12.2343053,168.01,167.87,16.4308]
[1729610884354,5.9526,168.0,167.88,23.776884]
[1729610884565,11.9914,168.01,167.88,51.04395164]
[1729610884959,6.0393,168.01,167.88,51.04395164]
[1729610885162,0.628041,168.07,167.95,27.26706764]
[1729610885361,0.628041,168.07,167.97,23.776884]
[1729610886075,5.9506,168.06,167.97,23.776884]
[1729610886252,0.628041,168.07,167.99,23.776884]
[1729610887257,0.628041,168.07,167.98,23.776884]
[1729610890373,0.628041,168.07,168.0,23.776884]
[1729610890578,5.9512,168.04,167.96,15.2026]
[1729610890758,5.9505,168.06,167.96,15.2026]
[1729610891074,0.628041,168.07,167.96,15.2026]
[1729610891277,5.9503,168.06,167.96,15.2026]
[1729610891973,5.951,168.04,167.96,15.2026]
[1729610892171,0.628041,168.07,167.98,121.04395164]
[1729610892362,0.628041,168.07,168.0,23.776884]
[1729610892684,0.628041,168.07,167.97,6.1502]
[1729610892852,5.9505,168.06,167.96,23.27871656]
[1729610893051,0.628041,168.07,167.98,27.26706764]
[1729610893586,0.628041,168.07,167.98,28.45696116]
[1729610894278,0.628041,168.07,167.99,23.776884]
[1729610896071,0.628041,168.07,168.01,27.26706764]
[1729610896256,0.628041,168.07,168.02,24.96654277]
[1729610896681,0.628041,168.07,168.02,31.22464277]
[1729610899356,0.628041,168.07,168.02,30.034984]
[1729610902281,0.628041,168.07,168.02,23.776884]
[1729610903677,0.628041,168.07,168.02,23.276884]
[1729610907581,0.628041,168.07,167.95,97.26706764]
[1729610907779,5.9503,168.06,167.95,97.26706764]
[1729610907963,6.577941,168.07,167.95,97.26706764]
[1729610908791,6.577941,168.07,167.97,23.776884]
[1729610909969,5.9502,168.06,167.97,23.776884]
[1729610910168,0.628041,168.07,167.97,23.776884]
[1729610910384,5.9502,168.06,167.97,23.776884]
[1729610910579,0.628041,168.07,167.97,23.776884]
[1729610910781,6.577941,168.07,167.97,23.776884]
[1729610914719,0.628041,168.07,167.97,23.776884]
[1729610914989,5.9503,168.06,167.97,23.776884]
[1729610915871,0.628041,168.07,167.97,23.776884]
[1729610916075,6.577941,168.07,167.97,23.776884]
[1729610918890,0.628041,168.07,167.97,23.776884]
[1729610919089,5.9502,168.06,167.97,23.776884]
[1729610924103,16.3275,168.06,167.92,16.0055]
[1729610924314,16.2275,168.06,167.89,6.4359]
[1729610924484,5.9528,167.99,167.89,6.4359]
[1729610925103,5.9533,167.98,167.88,33.01831583]
[1729610925399,6.4718,168.05,167.93,23.776884]
[1729610925781,5.9513,168.03,167.93,23.776884]
[1729610925989,6.4718,168.05,167.93,23.776884]
[1729610926287,5.9512,168.04,167.93,23.776884]
[1729610927002,5.9513,168.03,167.93,23.776884]
[1729610930605,6.4718,168.05,167.93,23.776884]
[1729610930832,5.9526,168.0,167.93,23.776884]
[1729610930987,5.9519,168.02,167.93,23.776884]
[1729610932916,5.9526,168.0,167.93,23.776884]
[1729610934898,5.9518,168.02,167.93,23.776884]
[1729610942015,6.4718,168.05,167.95,17.01281583]
[1729610942205,0.628041,168.07,167.96,38.998184]
[1729610942620,0.628041,168.07,167.96,108.998184]
[1729610942917,0.628041,168.07,167.98,23.776884]
[1729610944518,0.628041,168.07,168.0,23.776884]
[1729610945229,0.628041,168.07,168.04,23.776884]
[1729610945603,0.628041,168.07,168.05,17.01281583]
[1729610945804,0.628041,168.07,168.06,23.776884]
[1729610946725,0.628041,168.07,168.02,43.776884]
[1729610947021,0.628041,168.07,168.02,23.776884]
[1729610949227,0.628041,168.07,168.01,15.0799]
[1729610949431,6.577941,168.07,168.0,20.0]
[1729610950410,0.628041,168.07,168.0,20.0]
[1729610950716,0.628041,168.07,168.01,23.776884]
[1729610954433,0.628041,168.07,168.01,34.66151615]
[1729610955414,5.9503,168.06,167.99,10.88463215]
[1729610956628,6.708341,168.07,167.93,15.2775]
[1729610956831,5.9519,168.02,167.95,10.88463215]
[1729610957938,5.4519,168.02,167.95,10.88463215]
[1729610959909,5.9514,168.03,167.95,10.88463215]
[1729610960428,5.9517,168.02,167.95,10.88463215]
[1729610962744,5.9517,168.02,167.94,43.776884]
[1729610962945,5.9517,168.02,167.95,10.88463215]
[1729610963844,6.708341,168.07,167.99,10.88463215]
[1729610964048,0.628041,168.07,168.01,10.88463215]
[1729610964247,0.628041,168.07,168.03,10.88463215]
[1729610970949,5.9508,168.05,167.98,10.88463215]
[1729610971544,5.9508,168.05,167.9,0.2]
[1729610971545,5.9516,168.02,167.88,15.675]
[1729610971738,16.028,168.03,167.91,10.88463215]
[1729610972257,5.9524,168.0,167.91,10.88463215]
[1729610972748,16.028,168.03,167.92,20.0]
[1729610972929,16.028,168.03,167.9,70.0]
[1729610972930,16.028,168.03,167.96,23.776884]
[1729610973129,21.9795,168.03,167.96,23.776884]
[1729610973370,5.9505,168.06,167.98,23.776884]
[1729610973537,5.9507,168.05,167.98,23.776884]
[1729610973848,0.628041,168.07,167.97,34.66151615]
[1729610974053,5.9506,168.06,167.97,34.66151615]
[1729610974251,5.9502,168.06,167.97,34.66151615]
[1729610974560,5.9513,168.03,167.97,34.66151615]
[1729610978045,5.9513,168.03,167.97,10.88463215]
[1729610978235,5.9513,168.03,167.96,16.5182]
[1729610978431,5.9516,168.02,167.95,10.88463215]
[1729610978633,5.9526,168.0,167.94,23.776884]
[1729610978831,6.0888,168.05,167.91,10.88463215]